bitfinex/quotes_ETHUSD_20260121
["timestamp","ask_amount","ask_price","bid_price","bid_amount"]
[1768965639868,4.06046659,2972.8,2972.0,9.32940814]
[1768965640782,3.41585174,2972.8,2972.0,9.32940814]
[1768965640982,3.41585174,2972.8,2972.0,10.31794895]
[1768965641485,3.49197729,2972.8,2972.0,10.31794895]
[1768965641792,3.49197729,2972.8,2972.0,9.88440814]
[1768965642596,3.49197644,2972.8,2972.0,9.88440814]
[1768965643493,0.12812555,2972.8,2972.0,9.88440814]
[1768965643889,0.002,2972.8,2972.0,9.88440814]
[1768965644186,0.002,2972.8,2972.0,10.43940814]
[1768965644385,0.002,2972.8,2972.0,11.53894895]
[1768965645197,0.002,2972.8,2972.3,9.32940814]
[1768965645370,0.002,2972.8,2972.3,9.88540814]
[1768965646490,0.002,2972.8,2972.3,10.44040814]
[1768965648286,0.002,2972.6,2972.3,10.44040814]
[1768965648488,0.002,2972.6,2972.3,11.48444895]
[1768965648795,0.002,2972.6,2972.4,8.69072344]
[1768965651614,0.002,2972.6,2972.4,9.24572344]
[1768965651898,0.002,2972.6,2972.4,0.555]
[1768965654198,0.002,2972.6,2972.4,1.11]
[1768965656596,0.002,2972.6,2972.4,1.665]
[1768965657429,0.002,2972.6,2972.3,1e-08]
[1768965657629,4.8994379,2972.4,2972.0,1.11]
[1768965657808,0.48994379,2972.3,2972.0,1.11]
[1768965658312,0.48994379,2972.3,2972.0,9.80072344]
[1768965658629,3.36613433,2972.6,2972.0,9.80072344]
[1768965658993,3.36613433,2972.6,2972.0,10.35572344]
[1768965661540,3.36613433,2972.6,2972.1,8.69072344]
[1768965662729,6.7302717,2972.6,2972.1,8.69072344]
[1768965663639,3.36613433,2972.6,2972.1,8.69072344]
[1768965663806,1.22345395,2972.5,2972.1,9.24572344]
[1768965665342,4.58764342,2972.5,2972.1,9.24572344]
[1768965665928,1.22345395,2972.5,2972.1,9.24572344]
[1768965666223,3.36422585,2972.5,2972.1,9.24572344]
[1768965666408,3.36422585,2972.5,2972.1,9.80072344]
[1768965667847,6.73022345,2972.6,2972.1,9.80072344]
[1768965668152,6.73022345,2972.6,2972.1,1.11]
[1768965668728,3.36608675,2972.6,2972.1,1.11]
[1768965668923,1.23300589,2972.5,2972.1,1.665]
[1768965669754,3.36428475,2972.4,2972.1,1.665]
[1768965669949,1.23300589,2972.5,2972.1,1.665]
[1768965670155,0.555,2972.5,2972.1,1.665]
[1768965670352,0.002,2972.6,2972.1,10.35572344]
[1768965670744,3.36607093,2972.6,2972.1,10.35572344]
[1768965670946,0.002,2972.6,2972.1,10.35572344]
[1768965671558,0.002,2972.6,2972.2,8.69072344]
[1768965672054,0.002,2972.6,2972.4,8.69072344]
[1768965672631,0.002,2972.8,2972.3,0.001]
[1768965672826,0.557,2973.0,2972.5,8.69072344]
[1768965673228,0.002,2973.0,2972.5,8.69072344]
[1768965674026,0.002,2973.0,2972.5,9.24572344]
[1768965674250,0.002,2973.2,2972.6,8.69072344]
[1768965676432,0.002,2973.2,2972.6,9.24572344]
[1768965676758,0.002,2973.2,2972.8,8.82137028]
[1768965678764,0.002,2973.2,2972.8,9.37637028]
[1768965681132,0.002,2973.2,2972.8,9.93137028]
[1768965682359,0.002,2973.4,2972.9,8.87137028]
[1768965683563,0.002,2973.4,2972.9,9.42637028]
[1768965683763,0.002,2973.4,2973.1,8.87137028]
[1768965684276,0.002,2973.8,2973.0,1.60963703]
[1768965684474,6.382,2974.0,2973.1,8.87137028]
[1768965684779,6.382,2974.0,2973.2,8.87137028]
[1768965686052,6.382,2974.0,2973.2,9.42637028]
[1768965686371,0.002,2974.0,2973.4,8.87137028]
[1768965686567,0.555,2974.4,2973.6,8.87137028]
[1768965686967,0.052,2974.6,2973.6,8.87137028]
[1768965687167,0.002,2974.6,2973.6,4.89862577]
[1768965687379,3.36383331,2974.6,2973.7,8.87137028]
[1768965687580,3.36383331,2974.6,2973.9,8.87137028]
[1768965687965,0.002,2974.6,2973.9,8.87137028]
[1768965688569,0.002,2974.6,2973.9,9.42637028]
[1768965691184,0.002,2974.6,2973.9,9.98137028]
[1768965693494,4.89862577,2974.5,2973.9,1.665]
[1768965693694,0.052,2974.6,2973.9,10.53637028]
[1768965693897,0.002,2974.6,2974.0,8.87137028]
[1768965694061,0.557,2974.6,2974.0,8.87137028]
[1768965694261,0.002,2974.6,2974.0,8.87137028]
[1768965695995,0.002,2974.6,2974.0,9.42637028]
[1768965696675,0.002,2974.4,2974.0,9.42637028]
[1768965696998,0.002,2974.4,2974.1,10.09142101]
[1768965698277,0.002,2974.4,2974.1,10.64642101]
[1768965699513,0.002,2974.6,2974.2,8.87137028]
[1768965700776,0.002,2974.6,2974.2,9.42637028]
[1768965703314,0.002,2974.6,2974.2,9.98137028]
[1768965704314,0.002,2974.6,2974.2,1.11]
[1768965704517,0.67452842,2974.6,2974.2,1.11]
[1768965705016,4.03641849,2974.6,2974.2,1.11]
[1768965705191,0.67452842,2974.6,2974.2,1.11]
[1768965705397,0.002,2974.6,2974.3,8.73843308]
[1768965705915,6.77309772,2974.9,2974.3,8.73843308]
[1768965708118,6.77309772,2974.9,2974.3,9.29343308]
[1768965708512,6.77309772,2974.9,2974.3,0.505]
[1768965708722,0.73280977,2974.8,2974.3,9.24343308]
[1768965709097,0.002,2974.4,2974.3,9.24343308]
[1768965710399,0.002,2974.4,2974.3,9.79843308]
[1768965712837,8.26221939,2974.4,2974.1,0.555]
[1768965713040,7.42676736,2974.3,2974.1,0.555]
[1768965715342,7.42676736,2974.3,2974.1,1.11]
[1768965716117,6.77967443,2974.2,2973.9,1e-08]
[1768965716314,6.77967443,2974.1,2973.3,8.73843308]
[1768965716518,7.87647871,2974.1,2973.3,8.73843308]
[1768965717720,7.87647871,2974.1,2973.3,9.29343308]
[1768965718120,3.36247478,2974.0,2973.3,9.29343308]
[1768965718456,6.71877102,2973.9,2973.3,0.555]
[1768965718658,6.71877102,2973.8,2973.3,0.555]
[1768965719638,7.27377102,2973.8,2973.3,0.555]
[1768965720453,9.89258623,2973.7,2973.3,1.11]
[1768965720862,0.78216826,2973.9,2973.5,8.73943308]
[1768965721068,1.33716826,2973.9,2973.5,8.73943308]
[1768965721263,4.69977764,2973.9,2973.5,8.73943308]
[1768965721580,4.14477764,2973.9,2973.5,8.73943308]
[1768965722742,0.78216826,2973.9,2973.5,8.73943308]
[1768965722958,0.78216826,2973.9,2973.5,9.29443308]
[1768965723157,3.36242085,2974.1,2973.5,9.29443308]
[1768965723983,9.5266381,2974.1,2973.5,9.29443308]
[1768965724688,6.16421725,2974.1,2973.5,9.29443308]
[1768965724889,0.555,2974.2,2973.5,9.29443308]
[1768965725187,1.6420715,2974.2,2973.5,9.29443308]
[1768965725490,1.6420715,2974.2,2973.5,9.84943308]
[1768965725683,7.16242367,2974.2,2973.5,9.84943308]
[1768965725860,1.0870715,2974.2,2973.5,9.84943308]
[1768965726061,1.0870715,2974.2,2973.6,0.03362927]
[1768965726259,0.52754344,2974.1,2973.7,8.73843308]
[1768965726584,3.91714093,2974.3,2973.7,8.73843308]
[1768965727258,9.95654804,2974.4,2973.7,8.73843308]
[1768965727907,9.95654804,2974.4,2973.7,9.29343308]
[1768965730397,9.95654804,2974.4,2973.7,9.84843308]
[1768965730613,3.96907444,2974.4,2973.7,9.84843308]
[1768965730821,6.37870301,2974.3,2973.7,9.84843308]
[1768965730989,8.9247376,2974.2,2973.7,9.84843308]
[1768965731188,5.56248893,2974.1,2973.7,1.11]
[1768965732521,5.56248893,2974.1,2973.7,1.10900201]
[1768965732693,5.56248893,2974.1,2973.7,1.66400201]
[1768965733222,3.36237342,2974.1,2973.7,1.66400201]
[1768965733393,5.39901656,2974.0,2973.7,1.66400201]
[1768965734791,0.002,2974.2,2973.7,10.40243509]
[1768965734792,5.24117753,2974.2,2973.7,10.40243509]
[1768965734988,5.24117753,2974.2,2973.7,10.95743509]
[1768965735317,0.607,2974.4,2973.9,7.5240448]
[1768965735318,0.052,2974.4,2973.9,7.5240448]
[1768965736224,8.50058905,2974.4,2973.9,7.5240448]
[1768965736927,5.13853812,2974.4,2973.9,7.5240448]
[1768965737314,0.052,2974.4,2973.9,7.5240448]
[1768965737632,0.002,2974.4,2973.9,9.05334948]
[1768965739844,4.78403292,2975.2,2974.2,7.5240448]
[1768965740008,6.38,2975.4,2974.0,0.555]
[1768965740009,11.16403292,2975.4,2974.5,7.5240448]
[1768965740214,11.16403292,2975.4,2974.5,8.0790448]
[1768965740415,0.555,2975.5,2974.7,7.5240448]
[1768965740614,4.78603292,2975.6,2974.7,7.5240448]
[1768965740615,0.002,2975.6,2974.7,7.5240448]
[1768965741356,4.71254991,2975.6,2974.7,7.5240448]
[1768965741911,0.002,2975.6,2974.7,7.5240448]
[1768965742142,0.002,2975.6,2974.8,7.5240448]
[1768965742312,0.002,2975.6,2975.0,7.5240448]
[1768965743724,4.56587671,2975.5,2975.0,7.5240448]
[1768965744744,0.002,2975.4,2975.0,8.0790448]
[1768965744948,0.002,2975.6,2975.1,7.5240448]
[1768965745125,0.002,2975.6,2975.1,8.33194928]
[1768965746351,4.35682861,2976.3,2975.2,7.5240448]
[1768965746518,0.555,2976.2,2975.2,7.5240448]
[1768965746728,4.91182861,2976.2,2975.4,7.5240448]
[1768965747561,4.28807969,2976.1,2975.4,7.5240448]
[1768965747757,4.84307969,2976.1,2975.4,7.5240448]
[1768965749568,4.84307969,2976.1,2975.4,8.0790448]
[1768965749865,8.2031863,2976.1,2975.4,8.0790448]
[1768965750234,4.08614575,2976.0,2975.4,0.555]
[1768965751533,4.0203216,2975.8,2975.4,0.555]
[1768965752066,4.0203216,2975.8,2975.4,1.11]
[1768965752755,4.51022128,2975.7,2975.4,1.11]
[1768965752967,4.83108694,2975.6,2975.4,1.11]
[1768965753173,4.83108694,2975.6,2975.4,0.606]
[1768965753487,4.83108694,2975.6,2975.4,0.10101887]
[1768965753655,3.89083655,2975.6,2975.4,0.10101887]
[1768965754400,3.89083655,2975.6,2975.4,0.65601887]
[1768965755579,7.69647641,2975.7,2975.4,0.65601887]
[1768965756154,3.71859172,2975.6,2975.4,0.65601887]
[1768965756766,3.71859172,2975.6,2975.4,1.21101887]
[1768965756967,0.76341477,2975.5,2975.4,1.21101887]
[1768965757568,0.002,2975.6,2975.4,1.21101887]
[1768965759083,0.002,2975.6,2975.4,8.73506367]
[1768965759257,0.002,2975.6,2975.4,9.29006367]
[1768965762092,0.002,2975.6,2975.4,9.84506367]
[1768965763255,0.002,2975.6,2975.4,2.32101887]
[1768965763559,4.51642629,2976.1,2975.5,7.5240448]
[1768965763782,0.555,2976.0,2975.5,7.5240448]
[1768965764571,0.555,2976.0,2975.5,8.0790448]
[1768965764765,3.24393274,2976.2,2975.5,8.0790448]
[1768965764970,3.79893274,2976.2,2975.5,8.0790448]
[1768965765295,0.555,2976.2,2975.5,8.0790448]
[1768965765588,3.96478385,2976.4,2975.6,7.12331117]
[1768965767095,0.605,2976.4,2975.6,7.12331117]
[1768965767264,0.605,2976.4,2975.6,7.67831117]
[1768965767265,0.05,2976.4,2975.6,7.67831117]
[1768965767674,0.05,2976.4,2975.6,8.23331117]
[1768965768088,3.40976347,2976.4,2975.6,8.23331117]
[1768965768291,3.40976347,2976.4,2975.7,7.12331117]
[1768965768592,0.002,2976.1,2975.7,7.12331117]
[1768965769868,0.002,2976.1,2975.7,7.67831117]
[1768965772199,0.002,2976.1,2975.7,8.23331117]
[1768965773405,0.002,2976.1,2975.5,2.08423463]
[1768965773406,2.66375308,2975.9,2975.5,0.555]
[1768965773784,2.66375308,2975.9,2975.5,0.54993511]
[1768965774104,2.66375308,2975.9,2975.5,0.19469288]
[1768965774305,2.66375308,2975.9,2975.4,2.32101887]
[1768965774513,2.08639009,2975.7,2975.5,0.555]
[1768965774683,2.64139009,2975.6,2975.5,0.555]
[1768965775082,2.04603908,2975.5,2975.4,2.32101887]
[1768965775404,2.04603908,2975.5,2975.4,1e-08]
[1768965775711,0.555,2975.6,2975.4,1e-08]
[1768965775912,2.60103908,2975.6,2975.4,1e-08]
[1768965776112,0.26010391,2975.5,2975.4,1e-08]
[1768965776892,0.26010391,2975.5,2975.4,0.55500001]
[1768965778490,3.68396645,2976.1,2975.4,7.67831118]
[1768965778694,0.555,2975.8,2975.4,7.67831118]
[1768965779307,0.555,2975.8,2975.4,8.23331118]
[1768965780219,3.91544691,2975.8,2975.6,0.001]
[1768965780431,1.85912264,2975.7,2975.4,1.11000001]
[1768965780597,0.555,2975.8,2975.4,8.23331118]
[1768965781811,0.555,2975.8,2975.4,8.78831118]
[1768965782102,0.557,2975.9,2975.4,8.78831118]
[1768965783929,0.002,2975.9,2975.4,8.78831118]
[1768965784143,0.002,2975.9,2975.6,7.12331117]
[1768965786630,0.002,2975.9,2975.4,2.22000001]
[1768965786631,1.59576645,2975.9,2975.4,9.34331118]
[1768965786835,1.59576645,2975.9,2975.4,9.89831118]
[1768965787732,1.59576645,2975.9,2975.5,7.12331117]
[1768965787899,0.002,2975.9,2975.5,7.12331117]
[1768965788103,0.555,2976.0,2975.6,7.12331117]
[1768965788831,0.002,2976.1,2975.6,7.12331117]
[1768965789222,0.002,2976.1,2975.6,7.67831117]
[1768965791937,1.34908008,2976.1,2975.6,1.11]
[1768965792239,1.50222549,2975.9,2975.6,1e-08]
[1768965792433,0.555,2975.8,2975.6,1e-08]
[1768965792933,2.05722549,2975.8,2975.6,1e-08]
[1768965793702,5.41769557,2975.8,2975.6,1e-08]
[1768965793924,0.54196956,2975.7,2975.6,1e-08]
[1768965794301,0.54196956,2975.7,2975.6,0.55500001]
[1768965794502,0.54196956,2975.7,2975.6,0.53961802]
[1768965794730,0.54196956,2975.7,2975.6,0.43488753]
[1768965794934,0.54196956,2975.7,2975.6,0.35865969]
[1768965795711,0.54196956,2975.7,2975.6,0.27647935]
[1768965796845,1.87639748,2975.7,2975.6,0.83147935]
[1768965797238,1.87639748,2975.7,2975.6,0.74661532]
[1768965797438,1.87639748,2975.7,2975.6,0.6735433]
[1768965797628,1.87639748,2975.7,2975.4,2.77500001]
[1768965797629,1.29789184,2975.6,2975.4,2.55700001]
[1768965797831,1.29789184,2975.5,2975.2,0.555]
[1768965798211,1.84193103,2975.6,2975.2,0.555]
[1768965798566,1.84193103,2975.6,2975.1,6.47929869]
[1768965798567,1.26274678,2975.5,2975.0,0.555]
[1768965798851,1.26274678,2975.3,2974.8,6.47929869]
[1768965799223,1.26274678,2975.3,2974.8,7.03429869]
[1768965799414,1.26274678,2975.3,2974.8,0.555]
[1768965799813,1.29257328,2975.2,2974.8,0.555]
[1768965801841,1.22846647,2975.3,2974.8,7.58929869]
[1768965802027,4.10513298,2975.4,2974.8,7.58929869]
[1768965802347,0.86582942,2975.3,2974.8,7.58929869]
[1768965802954,2.02248265,2975.3,2974.8,7.58929869]
[1768965803952,3.36111858,2975.2,2974.8,7.58929869]
[1768965804352,3.36111858,2975.2,2974.8,8.14429869]
[1768965804539,0.555,2975.2,2974.8,8.14429869]
[1768965804859,1.6413492,2975.2,2975.0,0.001]
[1768965805064,2.25411885,2975.2,2974.8,1.665]
[1768965805264,1.16776965,2975.2,2974.9,6.47929869]
[1768965806665,1.16776965,2975.2,2974.9,7.03429869]
[1768965807585,0.05,2975.6,2975.0,6.47929869]
[1768965807787,3.41069453,2975.6,2975.0,6.47929869]
[1768965808277,0.555,2975.5,2975.0,6.47929869]
[1768965809135,0.555,2975.5,2975.0,7.03429869]
[1768965809336,0.95305063,2975.4,2975.0,0.505]
[1768965809537,3.9158575,2975.5,2975.0,6.98429869]
[1768965810538,1.00305063,2975.6,2975.0,7.90472856]
[1768965810539,0.05,2975.6,2975.0,7.90472856]
[1768965810744,0.555,2975.7,2975.0,7.90472856]
[1768965810945,6.885,2975.8,2975.0,7.90472856]
[1768965811166,10.24546494,2975.8,2975.0,7.90472856]
[1768965811773,10.24546494,2975.8,2975.1,6.47929869]
[1768965811980,10.24546494,2975.8,2975.1,7.38077155]
[1768965812643,0.8554102,2975.7,2975.1,6.47929869]
[1768965813047,3.36064464,2975.7,2975.1,6.47929869]
[1768965813386,0.82327204,2975.6,2975.1,6.47929869]
[1768965814080,0.79147074,2975.7,2975.1,6.47929869]
[1768965814294,6.885,2975.8,2975.1,7.84372856]
[1768965814751,6.33,2975.8,2975.1,7.84372856]
[1768965815078,0.555,2975.7,2975.1,7.84372856]
[1768965816791,0.002,2975.6,2975.2,6.47929869]
[1768965819229,0.002,2975.6,2975.2,7.03429869]
[1768965819515,0.63738592,2975.5,2975.2,0.555]
[1768965821228,0.63738592,2975.5,2975.2,0.42938538]
[1768965821518,0.57798051,2975.4,2975.2,0.75248363]
[1768965821724,0.39388663,2975.3,2975.2,0.63860327]
[1768965821880,0.39388663,2975.3,2975.2,0.553193]
[1768965822076,0.39388663,2975.3,2975.2,0.44835083]
[1768965822294,0.94888663,2975.3,2975.2,0.34350459]
[1768965822477,0.94888663,2975.3,2975.2,0.22912238]
[1768965822678,0.94888663,2975.3,2975.2,0.12426797]
[1768965822879,0.94888663,2975.3,2975.2,0.00987713]
[1768965823114,0.94888663,2975.3,2975.1,1.11]
[1768965823714,0.555,2975.3,2975.1,7.58929869]
[1768965823893,0.555,2975.3,2975.1,1.665]
[1768965824092,0.555,2975.3,2975.1,8.14429869]
[1768965824298,0.555,2975.3,2975.1,1.665]
[1768965824617,0.555,2975.3,2975.1,8.14429869]
[1768965824812,0.48120246,2975.2,2975.1,1.665]
[1768965825002,0.555,2975.3,2975.1,1.665]
[1768965826714,0.555,2975.3,2975.1,2.22]
[1768965827317,0.555,2975.3,2974.8,1.49617049]
[1768965827318,0.37753946,2975.2,2974.8,1.49617049]
[1768965827700,4.29354507,2975.3,2974.8,7.05893517]
[1768965828600,0.41719594,2975.2,2974.8,7.05893517]
[1768965828997,0.41719594,2975.2,2974.8,0.55500001]
[1768965829617,0.39034387,2975.0,2974.8,1e-08]
[1768965829920,0.7112807,2974.9,2974.6,5.56276468]
[1768965830112,0.7112807,2974.9,2974.7,0.52493875]
[1768965830503,1.2662807,2974.9,2974.2,5.56276468]
[1768965831596,4.99984402,2974.9,2974.2,6.11776468]
[1768965831793,0.872017,2974.8,2974.2,6.11776468]
[1768965833693,0.3720326,2974.8,2974.2,6.11776468]
[1768965833897,0.3720326,2974.8,2974.2,6.67276468]
[1768965833898,3.73363218,2974.8,2974.2,6.67276468]
[1768965834257,0.3720326,2974.8,2974.2,6.67276468]
[1768965834915,1.2662807,2974.9,2974.2,6.67276468]
[1768965835228,0.555,2974.9,2974.2,6.67276468]
[1768965835417,3.91650995,2974.9,2974.2,6.67276468]
[1768965836525,3.91650995,2974.9,2974.3,5.56276468]
[1768965837503,7.50588642,2974.9,2974.3,5.56276468]
[1768965838628,0.20327823,2974.8,2974.3,5.56276468]
[1768965838953,0.22893919,2974.7,2974.3,0.555]
[1768965839301,0.41197882,2974.8,2974.3,6.07851431]
[1768965839527,0.555,2974.6,2974.3,6.07851431]
[1768965840110,0.555,2974.7,2974.3,6.07851431]
[1768965840503,3.91672152,2974.7,2974.3,6.07851431]
[1768965841846,0.555,2974.7,2974.5,0.001]
[1768965842520,0.555,2974.7,2974.4,5.56276468]
[1768965843671,3.91668466,2974.7,2974.4,5.56276468]
[1768965844167,3.91668466,2974.7,2974.4,6.11776468]
[1768965844528,0.1125751,2974.6,2974.2,1.665]
[1768965844934,0.1125751,2974.6,2974.0,5.56276468]
[1768965845356,0.1125751,2974.6,2973.9,1.11]
[1768965845556,0.1125751,2974.6,2973.9,6.67276468]
[1768965846337,3.36190956,2974.5,2973.9,6.67276468]
[1768965846681,3.47442609,2974.6,2974.0,5.56276468]
[1768965847177,0.09971311,2974.4,2973.9,7.22776468]
[1768965847474,0.09971311,2974.4,2974.0,5.56276468]
[1768965849272,0.09971311,2974.4,2974.0,6.11776468]
[1768965849580,3.41197377,2974.5,2974.0,6.11776468]
[1768965849581,0.1056035,2974.5,2974.0,6.11776468]
[1768965850212,3.91671893,2974.7,2974.0,6.11776468]
[1768965850213,0.05,2974.7,2974.0,6.11776468]
[1768965850419,0.05,2974.7,2974.0,6.89604115]
[1768965850420,0.555,2974.6,2974.0,6.89604115]
[1768965851789,0.555,2974.6,2974.1,5.56276468]
[1768965853908,3.91682996,2974.6,2974.1,5.56276468]
[1768965854390,3.91682996,2974.6,2974.1,6.11776468]
[1768965854707,0.002,2974.5,2974.1,6.11776468]
[1768965857202,0.002,2974.5,2974.1,6.67276468]
[1768965859885,0.002,2974.5,2974.2,5.41530212]
[1768965862313,0.002,2974.5,2974.2,0.555]
[1768965862617,0.67976096,2974.5,2974.2,5.97030212]
[1768965862817,0.002,2974.5,2974.2,5.97030212]
[1768965864719,0.002,2974.5,2974.2,6.52530212]
[1768965867023,0.002,2974.3,2974.2,6.52530212]
[1768965867214,0.002,2974.3,2974.2,7.08030212]
[1768965869634,0.002,2974.3,2974.2,7.63530212]
[1768965871543,0.002,2974.3,2974.2,2.22]
[1768965872932,0.002,2974.3,2974.2,2.775]
[1768965873523,2.725,2974.2,2974.0,1e-08]
[1768965873726,0.3282,2974.1,2974.0,1e-08]
[1768965875437,0.3282,2974.1,2974.0,0.55500001]
[1768965875604,0.3282,2974.1,2974.0,0.50920273]
[1768965875805,0.3282,2974.1,2974.0,0.33610332]
[1768965876120,0.3282,2974.1,2974.0,0.08431372]
[1768965876316,0.3282,2974.1,2973.9,1.665]
[1768965876832,3.69061431,2974.1,2973.9,1.63556698]
[1768965877033,3.69061431,2974.1,2973.7,7.62418456]
[1768965877240,6.08730619,2974.2,2973.7,7.62418456]
[1768965877941,6.08730619,2974.2,2973.7,2.76388244]
[1768965878462,6.08730619,2974.2,2973.7,8.17918456]
[1768965879029,3.36230619,2974.2,2973.7,8.17918456]
[1768965879258,0.002,2974.0,2973.7,8.17918456]
[1768965880360,0.002,2974.0,2973.7,8.73418456]
[1768965881054,0.002,2974.0,2973.7,3.31888244]
[1768965881248,0.002,2974.0,2973.5,1.111]
[1768965881249,0.33863062,2974.0,2973.5,1.111]
[1768965881445,3.70115378,2974.0,2973.5,1.111]
[1768965881645,3.70115378,2974.0,2973.5,6.52630212]
[1768965881828,3.70115378,2974.0,2973.3,1.11]
[1768965881829,5.44639144,2973.9,2973.3,1.11]
[1768965882029,6.15774328,2973.9,2973.3,1.11]
[1768965882431,1.26635184,2973.9,2973.3,6.52530212]
[1768965882658,1.26635184,2973.9,2973.4,5.41530212]
[1768965883063,0.4630918,2973.8,2973.4,5.41530212]
[1768965885166,0.4630918,2973.8,2973.4,5.97030212]
[1768965886463,3.82581074,2973.8,2973.4,5.97030212]
[1768965886773,3.82581074,2973.8,2973.4,0.555]
[1768965887465,3.82581074,2973.8,2973.4,1.11]
[1768965887672,0.555,2973.7,2973.4,1.11]
[1768965889685,0.555,2973.7,2973.4,6.46220427]
[1768965889841,0.555,2973.7,2973.4,7.01720427]
[1768965892269,0.555,2973.7,2973.4,2.22]
[1768965892461,1.06420778,2973.7,2973.6,0.001]
[1768965892662,0.555,2973.7,2973.4,2.22]
[1768965894685,0.555,2973.7,2973.4,2.775]
[1768965895484,0.555,2973.7,2973.4,8.12720427]
[1768965897787,0.555,2973.7,2973.4,8.68220427]
[1768965897978,0.4630918,2973.8,2973.4,8.68220427]
[1768965898178,1.0180918,2973.8,2973.4,8.68220427]
[1768965900691,1.0180918,2973.8,2973.4,6.51320427]
[1768965903069,0.4630918,2973.8,2973.4,7.06820427]
[1768965903289,1.0180918,2973.8,2973.4,7.06820427]
[1768965905386,1.0180918,2973.8,2973.4,7.62320427]
[1768965906206,0.002,2973.9,2973.6,5.35220427]
[1768965906387,0.002,2973.9,2973.6,5.35320427]
[1768965906799,0.002,2974.7,2973.7,5.35220427]
[1768965906998,6.16716974,2974.9,2973.7,5.35220427]
[1768965907180,0.555,2974.8,2973.7,5.35220427]
[1768965907375,1.00836444,2974.7,2973.7,6.43216384]
[1768965907808,1.00836444,2974.7,2973.8,5.35220427]
[1768965908885,4.37007379,2974.7,2973.8,5.35220427]
[1768965909192,1.00836444,2974.7,2973.8,5.35220427]
[1768965909898,4.37009423,2974.7,2973.8,5.35220427]
[1768965910314,4.37009423,2974.7,2973.8,6.10652065]
[1768965910523,1.00836444,2974.7,2973.8,6.66152065]
[1768965911338,4.37005623,2974.7,2973.8,6.66152065]
[1768965911522,1.00836444,2974.7,2973.8,6.66152065]
[1768965911704,4.37005515,2974.7,2973.8,6.66152065]
[1768965912838,0.82866424,2974.6,2973.8,5.90720427]
[1768965913055,4.8915961,2974.5,2973.8,6.46220427]
[1768965913218,0.82866424,2974.6,2973.8,6.46220427]
[1768965915035,7.55234555,2974.6,2973.8,6.46220427]
[1768965915332,5.7526671,2974.5,2973.8,7.01720427]
[1768965915514,0.555,2974.4,2973.9,5.10396601]
[1768965917056,3.91709989,2974.4,2973.9,5.10396601]
[1768965918659,3.91709989,2974.4,2973.9,5.65896601]
[1768965918846,1.30316947,2974.3,2973.9,5.65896601]
[1768965919049,4.66530615,2974.3,2973.9,5.65896601]
[1768965919655,1.30316947,2974.3,2973.9,5.65896601]
[1768965920152,0.555,2974.4,2973.9,5.65896601]
[1768965920962,3.91704507,2974.4,2973.9,6.21396601]
[1768965921164,0.555,2974.4,2973.9,6.21396601]
[1768965921467,3.91702752,2974.4,2973.9,6.21396601]
[1768965922464,3.91702752,2974.4,2973.9,1.11]
[1768965922640,0.81400638,2974.3,2973.9,1.11]
[1768965923751,0.81400638,2974.3,2973.9,1.665]
[1768965924166,4.17617462,2974.3,2973.9,1.665]
[1768965927166,4.17617462,2974.3,2973.9,2.22]
[1768965927865,0.81400638,2974.3,2973.9,7.32396601]
[1768965928068,0.47311746,2974.2,2973.9,7.32396601]
[1768965929547,0.47311746,2974.2,2973.9,2.775]
[1768965929878,3.83536613,2974.2,2974.1,0.001]
[1768965930176,3.83536613,2974.2,2973.9,2.775]
[1768965930341,0.47311746,2974.2,2973.9,2.775]
[1768965931482,0.46493117,2974.1,2973.9,2.775]
[1768965932258,3.82731579,2974.1,2973.8,1.61595555]
[1768965933027,3.82731579,2974.1,2973.7,5.65896601]
[1768965933575,3.82731579,2974.1,2973.7,0.555]
[1768965933774,0.76627278,2974.0,2973.7,0.555]
[1768965934073,4.12878388,2974.0,2973.7,0.555]
[1768965934449,0.76627278,2974.0,2973.7,0.555]
[1768965934642,0.76627278,2974.0,2973.7,1.11]
[1768965934955,3.82732254,2974.1,2973.7,6.21396601]
[1768965935963,0.46493117,2974.1,2973.7,6.21396601]
[1768965937566,0.555,2974.1,2973.8,5.10396601]
[1768965940035,0.555,2974.1,2973.8,5.65896601]
[1768965940572,0.555,2974.1,2973.8,0.555]
[1768965941082,3.91737991,2974.1,2973.7,6.76896601]
[1768965941683,0.39173799,2974.0,2973.7,1.665]
[1768965941883,0.39173799,2974.0,2973.7,1e-08]
[1768965942981,0.39173799,2974.0,2973.7,0.55500001]
[1768965943778,3.75428133,2974.0,2973.7,0.55500001]
[1768965943945,3.75428133,2974.0,2973.7,0.51481915]
[1768965944251,3.75428133,2974.0,2973.7,0.34311917]
[1768965944452,3.75428133,2974.0,2973.7,0.23180241]
[1768965944656,0.39173799,2974.0,2973.7,0.22168245]
[1768965945278,0.39173799,2974.0,2973.7,0.77668245]
[1768965945776,3.75421631,2974.0,2973.7,5.87104474]
[1768965947764,0.39173799,2974.0,2973.7,5.87104474]
[1768965947967,0.39173799,2974.0,2973.7,6.42604474]
[1768965948167,0.555,2974.1,2973.7,6.42604474]
[1768965948678,3.3624992,2974.0,2973.7,6.42604474]
[1768965949369,3.91741784,2974.1,2973.7,6.42604474]
[1768965950667,3.91741784,2974.1,2973.7,6.98104474]
[1768965950867,0.72796802,2974.0,2973.7,6.98104474]
[1768965952478,3.91741784,2974.1,2973.7,6.98104474]
[1768965952949,3.91741784,2974.1,2973.7,7.53604474]
[1768965953622,3.91741784,2974.1,2973.9,0.001]
[1768965953779,3.91741784,2974.1,2973.7,7.53604474]
[1768965954703,7.27983568,2974.1,2973.7,4.16796564]
[1768965954880,1.50296276,2973.9,2973.6,0.001]
[1768965955081,3.6359928,2973.8,2973.3,4.81239729]
[1768965955280,1.18902887,2973.7,2973.3,4.81239729]
[1768965955720,3.36259017,2973.9,2973.3,4.81239729]
[1768965956719,0.555,2973.9,2973.3,4.81239729]
[1768965957689,3.91762208,2973.9,2973.3,4.81239729]
[1768965957885,3.91762208,2973.9,2973.3,5.36739729]
[1768965959625,0.555,2973.9,2973.3,5.36739729]
[1768965959820,0.555,2973.9,2973.3,5.95973702]
[1768965960198,0.555,2973.9,2973.3,1.70233973]
[1768965960399,0.555,2973.9,2973.4,5.09436229]
[1768965961407,0.44267894,2974.0,2973.7,5.09436229]